bitfinex/quotes_SOLUSD_20250417
["timestamp","ask_amount","ask_price","bid_price","bid_amount"]
[1744889601375,7.52502069,132.89,132.88,0.063]
[1744889601577,8.93277299,132.89,132.88,0.063]
[1744889601746,27.58242185,132.89,132.88,0.063]
[1744889601946,27.86674499,132.89,132.88,0.063]
[1744889604469,43.49326568,132.89,132.88,0.063]
[1744889606969,58.51326568,132.89,132.88,0.063]
[1744889608781,58.51326568,132.89,132.88,1e-08]
[1744889608950,0.28432314,132.87,132.86,0.063]
[1744889609150,27.86674499,132.87,132.86,0.063]
[1744889610269,35.39289837,132.87,132.86,0.063]
[1744889610566,35.10857523,132.87,132.86,0.063]
[1744889613354,35.39289837,132.87,132.86,0.063]
[1744889616278,71.12399033,132.87,132.86,1e-08]
[1744889616683,18.64964886,132.86,132.85,1e-08]
[1744889616979,26.88884886,132.85,132.84,0.063]
[1744889617182,35.82162185,132.85,132.84,0.063]
[1744889619386,43.34890826,132.85,132.84,0.063]
[1744889622788,18.933972,132.84,132.81,0.063]
[1744889623078,42.86674499,132.84,132.81,0.063]
[1744889624579,50.39459804,132.84,132.81,0.063]
[1744889625181,50.39459804,132.84,132.83,1e-08]
[1744889627992,35.39459804,132.84,132.83,1e-08]
[1744889628180,50.1102749,132.84,132.83,1e-08]
[1744889630388,35.1102749,132.84,132.83,1e-08]
[1744889630589,7.52558699,132.88,132.83,8.932773]
[1744889630813,16.45835998,132.88,132.83,8.932773]
[1744889630968,35.10800884,132.88,132.83,8.932773]
[1744889632172,27.58242185,132.87,132.83,8.932773]
[1744889632386,8.93277299,132.86,132.83,1e-08]
[1744889633082,26.17523585,132.88,132.84,8.93277299]
[1744889633290,35.10800884,132.88,132.84,8.93277299]
[1744889634197,7.52513528,132.89,132.85,8.93277299]
[1744889634373,16.45790827,132.89,132.85,8.93277299]
[1744889634575,99.25790827,132.89,132.85,8.93277299]
[1744889635695,90.32513528,132.89,132.85,8.93277299]
[1744889637697,90.32513528,132.89,132.85,16.46000096]
[1744889639000,90.32513528,132.89,132.85,8.93277299]
[1744889640174,90.32513528,132.89,132.85,16.45998716]
[1744889640600,90.32513528,132.89,132.86,8.93277299]
[1744889641380,82.8,132.89,132.87,8.93277299]
[1744889643203,82.8,132.89,132.87,16.45888032]
[1744889643407,82.8,132.89,132.88,8.93277299]
[1744889643610,82.8,132.92,132.88,8.93277299]
[1744889643911,82.8,132.92,132.9,8.93277299]
[1744889644499,82.8,132.92,132.89,16.45778859]
[1744889644794,82.8,132.92,132.89,8.93277299]
[1744889645503,82.8,132.92,132.9,8.93277299]
[1744889645688,0.03,132.93,132.91,8.93277299]
[1744889647296,0.03,132.93,132.92,8.93277299]
[1744889647599,0.03,132.93,132.92,9.21709613]
[1744889647901,0.03,132.93,132.92,46.54478809]
[1744889648083,0.03,132.93,132.92,10.81369613]
[1744889648679,0.7962239,132.93,132.92,10.81369613]
[1744889649090,0.7962239,132.93,132.92,18.33701842]
[1744889650401,0.7962239,132.93,132.92,18.05269528]
[1744889651403,0.7962239,132.93,132.92,16.45609528]
[1744889651603,0.7962239,132.93,132.92,8.93277299]
[1744889653185,0.7962239,132.93,132.92,16.45609528]
[1744889655207,0.7962239,132.93,132.92,42.74041842]
[1744889655406,0.7962239,132.93,132.92,80.05061038]
[1744889656210,0.03,132.95,132.94,26.28432314]
[1744889656418,0.03,132.95,132.94,50.19709613]
[1744889657819,0.03,132.95,132.94,57.71928659]
[1744889664723,0.03,132.95,132.94,57.43496345]
[1744889665024,0.03,132.95,132.93,7.52250725]
[1744889665221,0.03,132.95,132.93,42.45528024]
[1744889666116,0.03,132.95,132.94,8.93277299]
[1744889667916,0.03,132.95,132.94,16.45496345]
[1744889668111,0.03,132.95,132.94,16.73928659]
[1744889669623,0.03,132.98,132.97,26.0]
[1744889669820,0.03,132.98,132.97,35.21709613]
[1744889670001,0.03,132.98,132.97,42.73758947]
[1744889673435,0.03,132.99,132.97,42.73758947]
[1744889673616,0.03,133.01,132.99,44.66386495]
[1744889673811,0.03,133.01,133.0,70.66386495]
[1744889674031,0.03,133.01,133.0,44.66386495]
[1744889674235,0.03,133.02,133.0,44.94818809]
[1744889674413,0.03,133.02,133.01,49.91277299]
[1744889675326,0.03,133.02,133.01,57.71532784]
[1744889679838,0.03,133.07,133.01,31.71532784]
[1744889680049,0.03,133.07,133.02,9.21709613]
[1744889680220,0.03,133.07,133.03,34.93277299]
[1744889681039,0.03,133.07,133.05,7.51597143]
[1744889681231,0.03,133.07,133.05,16.44874442]
[1744889681638,0.03,133.07,133.05,16.73306756]
[1744889688874,0.03,133.08,133.06,71.11324353]
[1744889689165,8.0229,133.16,133.11,26.0]
[1744889689331,8.0229,133.16,133.13,8.93277299]
[1744889689746,8.0229,133.16,133.12,8.93277299]
[1744889690034,8.93277299,133.13,133.06,7.51540658]
[1744889690332,101.44964886,133.15,133.06,7.51540658]
[1744889690333,7.9055,133.12,133.1,8.93277299]
[1744889690730,7.9055,133.12,133.11,8.93277299]
[1744889691349,7.9055,133.12,133.1,8.93277299]
[1744889691965,7.9055,133.12,133.11,8.93277299]
[1744889693847,7.9055,133.12,133.09,7.51342527]
[1744889694031,7.9055,133.12,133.1,8.93277299]
[1744889694640,7.9055,133.12,133.11,8.93277299]
[1744889695048,7.9055,133.12,133.1,8.93277299]
[1744889697445,82.8,133.15,133.11,8.93277299]
[1744889697644,82.8,133.15,133.13,8.93277299]
[1744889698667,82.8,133.15,133.14,8.93277299]
[1744889698967,7.9789,133.16,133.14,8.93277299]
[1744889699143,7.9789,133.16,133.15,8.93277299]
[1744889700266,0.03,133.16,133.15,8.93277299]
[1744889700564,0.03,133.16,133.14,8.93277299]
[1744889700773,16.49097299,133.15,133.1,23.89277299]
[1744889700965,8.93277299,133.13,133.1,14.96]
[1744889701142,8.93277299,133.13,133.09,8.93277299]
[1744889701351,7.51201923,133.12,133.08,34.93277299]
[1744889701861,16.44479222,133.12,133.08,34.93277299]
[1744889702867,16.44479222,133.12,133.07,8.93277299]
[1744889703169,99.24479222,133.12,133.07,8.93277299]
[1744889703563,90.31201923,133.12,133.08,8.93277299]
[1744889703771,90.31201923,133.12,133.09,8.93277299]
[1744889704975,91.73277299,133.11,133.06,26.0]
[1744889705279,7.7945,133.1,133.07,8.93277299]
[1744889705871,16.72727299,133.1,133.06,8.93277299]
[1744889706178,16.72727299,133.1,133.05,23.89277299]
[1744889706759,7.51371252,133.09,133.05,23.89277299]
[1744889706962,90.31371252,133.09,133.05,23.89277299]
[1744889707165,90.31371252,133.09,133.06,13.9097726]
[1744889707882,90.31371252,133.09,133.05,13.9097726]
[1744889708181,82.8,133.08,133.04,39.9097726]
[1744889708384,82.8,133.08,133.05,13.9097726]
[1744889708958,90.31452108,133.08,133.05,13.9097726]
[1744889710081,104.22429368,133.08,133.04,13.9097726]
[1744889710257,104.22429368,133.08,133.03,13.9097726]
[1744889710258,82.8,133.07,133.03,13.9097726]
[1744889711181,90.31536312,133.07,133.03,13.9097726]
[1744889711380,90.31536312,133.07,133.03,21.4267269]
[1744889711564,90.31536312,133.07,133.05,13.9097726]
[1744889712069,90.31536312,133.07,133.04,13.9097726]
[1744889712978,90.31536312,133.07,133.01,26.0]
[1744889712979,22.1481726,133.05,133.01,26.0]
[1744889713177,104.9481726,133.05,133.01,26.0]
[1744889713360,82.8,133.04,133.0,13.9727726]
[1744889714356,32.55942146,133.03,133.0,0.063]
[1744889714663,32.55942146,133.01,133.0,0.063]
[1744889715083,40.07765317,133.01,133.0,0.063]
[1744889715903,67.17695558,133.01,132.98,0.063]
[1744889716187,32.8437446,132.99,132.98,0.063]
[1744889716398,109.753372,132.98,132.92,0.063]
[1744889716572,13.9097726,132.95,132.92,0.063]
[1744889717083,108.97183932,132.94,132.92,0.063]
[1744889717287,122.88161192,132.94,132.92,0.063]
[1744889718175,82.8,132.94,132.93,13.9097726]
[1744889718910,82.8,132.94,132.92,13.9727726]
[1744889719072,82.8,132.94,132.92,0.063]
[1744889720985,32.55942146,132.93,132.92,0.063]
[1744889721187,40.4734446,132.93,132.92,0.063]
[1744889723089,47.99620093,132.93,132.92,0.063]
[1744889724566,80.71286437,132.93,132.9,0.063]
[1744889724871,32.8437446,132.91,132.9,0.063]
[1744889725294,40.36763294,132.91,132.9,0.063]
[1744889725492,40.36763294,132.91,132.87,0.063]
[1744889725493,18.933972,132.9,132.87,0.063]
[1744889725793,13.9097726,132.88,132.87,0.063]
[1744889727393,21.43535959,132.88,132.87,0.063]
[1744889727777,44.64964886,132.87,132.83,1e-08]
[1744889727994,32.55942146,132.84,132.83,1e-08]
[1744889728295,55.84442146,132.84,132.83,1e-08]
[1744889728896,56.1287446,132.84,132.83,1e-08]
[1744889729277,56.1287446,132.84,132.79,0.063]
[1744889729278,18.64964886,132.81,132.79,0.063]
[1744889729481,32.8437446,132.81,132.79,0.063]
[1744889730778,33.88022314,132.8,132.79,1e-08]
[1744889730987,80.3494172,132.8,132.79,1e-08]
[1744889731386,87.87953768,132.8,132.79,1e-08]
[1744889731803,46.7535172,132.79,132.78,1e-08]
[1744889731996,61.7335172,132.79,132.76,0.063]
[1744889732295,32.55942146,132.78,132.76,0.063]
[1744889732506,18.933972,132.74,132.73,0.063]
[1744889732689,47.8237446,132.74,132.73,1e-08]
[1744889733603,55.35726878,132.74,132.73,1e-08]
[1744889734484,44.64964886,132.72,132.71,0.063]
[1744889734683,18.64964886,132.71,132.69,0.063]
[1744889734978,32.8437446,132.7,132.69,0.063]
[1744889735199,47.45273257,132.7,132.69,0.063]
[1744889735606,54.98852759,132.7,132.69,0.063]
[1744889737591,69.98852759,132.7,132.69,0.063]
[1744889737993,0.28432314,132.68,132.63,22.39826057]
[1744889738192,22.68258371,132.68,132.63,22.39826057]
[1744889738510,101.44964886,132.69,132.64,22.39826057]
[1744889738686,101.44964886,132.69,132.66,22.39826057]
[1744889739003,123.84790943,132.69,132.64,22.39826057]
[1744889740105,131.38468925,132.69,132.64,22.39826057]
[1744889740286,131.38468925,132.69,132.64,29.93740988]
[1744889740706,131.38468925,132.69,132.64,22.39826057]
[1744889742179,131.38468925,132.69,132.63,7.53960206]
[1744889742410,131.38468925,132.69,132.64,22.39826057]
[1744889743425,101.44964886,132.69,132.65,22.39826057]
[1744889744791,18.64964886,132.69,132.65,22.39826057]
[1744889746594,18.64964886,132.69,132.65,29.93669773]
[1744889750618,7.9598,132.76,132.68,22.39826057]
[1744889750814,90.33146184,132.78,132.74,22.39826057]
[1744889751012,112.72972241,132.78,132.74,22.39826057]
[1744889751218,36.29484317,132.79,132.74,22.39826057]
[1744889751515,13.8965826,132.79,132.75,22.39826057]
[1744889752094,18.64964886,132.78,132.75,22.39826057]
[1744889752307,18.64964886,132.78,132.75,29.93117599]
[1744889753006,18.64964886,132.78,132.75,22.39826057]
[1744889753413,18.64964886,132.78,132.75,29.9311139]
[1744889753897,18.64964886,132.78,132.75,22.39826057]
[1744889754101,26.18097121,132.78,132.74,29.93152933]
[1744889754294,18.64964886,132.76,132.73,22.39826057]
[1744889754502,29.92983977,132.78,132.74,22.39826057]
[1744889754709,18.64964886,132.77,132.74,22.39826057]
[1744889754911,18.64964886,132.78,132.75,22.39826057]
[1744889755304,18.64964886,132.78,132.75,13.97370825]
[1744889756010,18.64964886,132.78,132.74,13.97370825]
[1744889756405,26.18127038,132.78,132.74,21.50714888]
[1744889756791,18.64964886,132.78,132.74,21.50714888]
[1744889756995,18.64964886,132.78,132.75,13.97370825]
[1744889757510,6.3657,132.79,132.75,13.97370825]
[1744889757722,82.8,132.78,132.76,13.97370825]
[1744889758320,82.8,132.78,132.77,13.97370825]
[1744889758626,82.8,132.8,132.77,13.97370825]
[1744889758923,82.8,132.8,132.79,13.97370825]
[1744889759520,82.8,132.82,132.79,13.97370825]
[1744889759720,82.8,132.82,132.8,13.97370825]
[1744889760092,82.8,132.82,132.81,13.97370825]
[1744889761108,82.8,132.82,132.8,13.97370825]
[1744889762927,0.03,132.83,132.81,13.97370825]
[1744889763231,0.03,132.83,132.82,39.97370825]
[1744889765938,0.03,132.83,132.82,47.50269484]
[1744889770237,0.03,132.83,132.78,19.11219713]
[1744889770436,0.03,132.83,132.81,26.0]
[1744889770933,0.03,132.83,132.81,39.97370825]
[1744889772043,0.03,132.83,132.79,13.97370825]
[1744889772342,82.8,132.82,132.78,54.95370825]
[1744889772929,96.77370825,132.82,132.77,13.97370825]
[1744889773235,82.8,132.81,132.78,13.97370825]
[1744889773451,82.8,132.81,132.79,13.97370825]
[1744889774917,109.00810165,132.83,132.79,13.97370825]
[1744889775323,122.9818099,132.83,132.78,13.97370825]
[1744889776219,122.9818099,132.83,132.78,21.50490464]
[1744889777248,109.00810165,132.83,132.79,13.97370825]
[1744889777453,82.83,132.83,132.8,13.97370825]
[1744889778144,104.33217581,132.83,132.78,39.97370825]
[1744889778344,13.97370825,132.82,132.78,26.0]
[1744889778818,21.50320569,132.82,132.78,26.0]
[1744889779019,7.52949744,132.82,132.79,13.97370825]
[1744889780549,90.35867285,132.83,132.8,13.97370825]
[1744889781843,90.35867285,132.83,132.79,13.97370825]
[1744889782223,90.35867285,132.83,132.8,13.97370825]
[1744889785130,82.83,132.83,132.82,13.97370825]
[1744889785857,82.83,132.83,132.81,13.97370825]
[1744889786937,82.83,132.83,132.8,21.50361601]
[1744889787136,90.35845389,132.83,132.78,41.02]
[1744889787331,90.35845389,132.83,132.79,13.97370825]
[1744889787558,82.83,132.83,132.79,13.97370825]
[1744889787738,82.83,132.83,132.8,13.97370825]
[1744889791037,82.83,132.83,132.79,21.50410724]
[1744889791236,90.35852819,132.83,132.79,21.50410724]
[1744889791543,82.83,132.83,132.8,13.97370825]
[1744889791854,82.83,132.83,132.79,7.53039899]
[1744889792053,82.83,132.83,132.79,21.50410724]
[1744889792442,82.83,132.83,132.8,13.97370825]
[1744889793367,82.83,132.83,132.81,21.50326174]
[1744889794255,82.83,132.83,132.82,13.97370825]
[1744889794766,0.03,132.83,132.82,13.97370825]
[1744889795561,0.03,132.83,132.82,21.50269484]
[1744889797661,0.03,132.83,132.82,21.78701798]
[1744889797662,1e-08,132.83,132.82,21.78701798]
[1744889799344,0.03,132.89,132.86,26.0]
[1744889799549,0.03,132.91,132.88,40.25803139]
[1744889799758,0.03,132.91,132.9,13.97370825]
[1744889801254,0.03,132.91,132.9,40.25803139]
[1744889801458,0.03,132.91,132.9,47.78248586]
[1744889801761,0.03,132.91,132.9,21.78248586]
[1744889802160,0.03,132.92,132.91,0.28432314]
[1744889802467,1e-08,132.92,132.91,28.23173964]
[1744889802669,0.03,132.97,132.94,26.0]
[1744889802868,0.03,132.97,132.96,39.97370825]
[1744889806174,0.03,132.97,132.96,47.49476721]
[1744889807871,0.03,132.97,132.95,47.49509825]
[1744889808370,0.03,132.97,132.96,13.97370825]
[1744889809360,0.03,132.97,132.96,21.49476721]
[1744889811771,0.03,132.97,132.96,13.97370825]
[1744889812074,0.03,132.97,132.95,26.0]
[1744889813982,7.55049334,132.97,132.93,29.01370825]
[1744889814159,7.55049334,132.97,132.93,55.01370825]
[1744889814359,7.55049334,132.97,132.94,13.97370825]
[1744889816969,90.35049334,132.97,132.94,13.97370825]
[1744889817279,104.32420159,132.97,132.93,13.97370825]
[1744889817451,90.35049334,132.97,132.93,13.97370825]
[1744889818079,82.83,132.97,132.94,13.97370825]
[1744889818260,82.83,132.97,132.95,13.97370825]
[1744889820559,82.83,132.97,132.96,13.97370825]
[1744889820876,82.83,132.97,132.95,13.97370825]
[1744889821183,104.32433179,132.97,132.93,13.97370825]
[1744889821377,13.97370825,132.96,132.92,13.97370825]
[1744889822680,21.49504,132.96,132.92,13.97370825]
[1744889822982,104.29504,132.96,132.92,13.97370825]
[1744889824084,90.32133175,132.96,132.92,13.97370825]
[1744889826293,40.30315711,132.95,132.89,7.52468574]
[1744889826467,40.30315711,132.95,132.86,21.52200825]
[1744889826468,13.97370825,132.94,132.9,13.97370825]
[1744889826980,96.77370825,132.93,132.89,13.97370825]
[1744889827401,82.8,132.93,132.9,13.97370825]
[1744889827567,82.8,132.93,132.92,13.97370825]
[1744889828593,7.6798,132.95,132.92,13.97370825]
[1744889828894,90.32105982,132.96,132.93,13.97370825]
[1744889829270,104.29476807,132.96,132.91,13.97370825]
[1744889829464,32.62335711,132.95,132.91,13.97370825]
[1744889830171,18.64964886,132.95,132.91,13.97370825]
[1744889830676,7.52219046,132.94,132.91,13.97370825]
[1744889830874,104.29502048,132.96,132.92,13.97370825]
[1744889831079,90.32131223,132.96,132.93,13.97370825]
[1744889832498,0.03,132.97,132.95,13.97370825]
[1744889832994,0.03,132.97,132.93,13.97370825]
[1744889833503,0.03,132.97,132.94,13.97370825]
[1744889834675,32.65335711,132.97,132.92,13.97370825]
[1744889834988,18.67964886,132.97,132.93,13.97370825]
[1744889835374,0.03,132.97,132.95,13.97370825]
[1744889835803,0.03,132.97,132.96,13.97370825]
[1744889836291,0.03,132.97,132.96,28.97370825]
[1744889836991,0.03,133.02,132.96,62.49476721]
[1744889837198,0.03,133.02,133.01,13.97370825]
[1744889840009,0.03,133.02,133.01,21.49193996]
[1744889840216,0.03,133.02,133.01,36.49193996]
[1744889841206,0.03,133.02,133.01,28.97370825]
[1744889841514,0.03,133.02,133.01,36.49193996]
[1744889842326,0.03,133.02,133.01,62.49193996]
[1744889843528,0.03,133.02,133.01,36.7762631]
[1744889844611,0.03,133.03,133.02,0.28432314]
[1744889844793,0.03,133.03,133.02,40.25803139]
[1744889845931,0.03,133.03,132.96,5.8239]
[1744889846226,0.03,133.03,133.0,26.0]
[1744889846400,0.03,133.03,133.0,39.97370825]
[1744889846607,0.03,133.03,133.01,13.97370825]
[1744889848022,0.03,133.03,133.02,13.97370825]
[1744889848217,0.03,133.03,133.02,28.97370825]
[1744889850406,0.03,133.03,133.02,29.25803139]
[1744889850922,0.03,133.03,133.02,36.7756979]
[1744889855434,0.03,133.04,133.03,0.28432314]
[1744889855633,0.03,133.04,133.03,14.25803139]
[1744889857017,0.03,133.04,133.03,21.77513279]
[1744889857642,0.03,133.04,133.03,14.25803139]
[1744889860924,0.03,133.04,133.03,21.77513279]
[1744889862027,0.03,133.04,133.03,14.25803139]
[1744889862744,0.03,133.04,133.03,21.77513279]
[1744889863943,0.03,133.04,133.03,26.0]
[1744889864118,0.03,133.04,133.03,39.97370825]
[1744889866226,0.03,133.04,133.03,26.0]
[1744889867314,0.03,133.04,133.03,39.97370825]
[1744889871150,0.03,133.04,133.03,34.90472245]
[1744889875848,0.03,133.04,133.03,26.0]
[1744889876054,0.03,133.04,133.03,34.90472245]
[1744889877852,0.03,133.04,132.97,234.38]
[1744889878152,0.03,133.04,133.01,8.90472245]
[1744889879253,7.54653638,133.04,133.01,8.90472245]
[1744889879753,7.54653638,133.04,133.0,34.90472245]
[1744889880058,0.03,133.04,133.01,8.90472245]
[1744889880447,0.03,133.04,133.0,34.90472245]
[1744889881254,8.90472245,133.01,132.97,15.1]
[1744889881465,8.90472245,133.0,132.97,15.1]
[1744889881766,90.9115,133.03,132.98,8.90472245]
[1744889881767,8.90472245,133.02,132.98,8.90472245]
[1744889881937,18.64964886,133.02,132.98,8.90472245]
[1744889882261,8.90472245,133.0,132.97,15.1]
[1744889883158,16.42365396,133.0,132.96,34.90472245]
[1744889883653,7.51893151,133.0,132.96,34.90472245]
[1744889884161,8.90472245,133.0,132.95,15.12]
[1744889884339,8.90472245,133.0,132.96,8.90472245]
[1744889884538,99.22316977,133.01,132.96,8.90472245]
[1744889885437,82.8,133.01,133.0,8.90472245]
[1744889885642,8.1115,133.03,133.0,8.90472245]
[1744889885845,82.83,133.04,133.02,8.90472245]
[1744889886077,0.03,133.04,133.03,8.90472245]
[1744889888461,0.03,133.04,133.01,7.51818727]
[1744889888668,0.03,133.04,133.01,26.0]
[1744889888861,0.03,133.04,133.01,34.90472245]
[1744889889163,0.03,133.04,133.01,39.91778662]
[1744889890764,13.94778662,133.04,133.01,26.0]
[1744889891563,0.03,133.04,133.01,39.91778662]
[1744889891767,0.03,133.04,133.01,26.0]
[1744889892573,0.03,133.04,133.01,39.91778662]
[1744889893673,0.03,133.04,133.03,13.91778662]
[1744889893862,0.03,133.04,133.03,39.91778662]
[1744889895060,0.03,133.04,133.01,13.91778662]
[1744889895267,0.03,133.04,133.01,26.0]
[1744889896871,0.03,133.04,132.98,15.12]
[1744889896872,96.71778662,133.03,132.98,15.12]
[1744889897056,21.43545313,133.02,132.98,29.03778662]
[1744889897261,8.0704,133.01,132.98,29.03778662]
[1744889897565,8.0704,133.01,132.98,39.91778662]
[1744889899076,8.0704,133.01,132.93,13.91778662]
[1744889899077,108.96844585,133.0,132.93,13.91778662]
[1744889899252,13.91778662,132.96,132.92,13.91778662]
[1744889899580,13.91778662,132.97,132.92,13.91778662]
[1744889899972,13.91778662,132.97,132.93,26.0]
[1744889900154,13.91778662,132.97,132.92,13.91778662]
[1744889900354,13.91778662,132.95,132.91,0.063]
[1744889900759,96.71778662,132.96,132.91,13.98078662]
[1744889901160,7.52162467,132.95,132.91,13.98078662]
[1744889901359,21.43941129,132.95,132.91,13.98078662]
[1744889902067,7.52162467,132.95,132.91,13.98078662]
[1744889902267,21.43941129,132.95,132.91,13.98078662]
[1744889903781,7.52162467,132.95,132.91,13.98078662]
[1744889903984,21.43941129,132.95,132.91,13.98078662]
[1744889904288,21.43941129,132.95,132.91,0.063]
[1744889904987,28.00091129,132.95,132.91,0.063]
[1744889905582,7.52275633,132.93,132.91,0.063]
[1744889905790,104.24054295,132.93,132.91,0.063]
[1744889907272,90.32275633,132.93,132.91,0.063]
[1744889907479,82.8,132.93,132.91,0.063]
[1744889907662,6.5615,132.95,132.92,13.91778662]
[1744889907992,6.5615,132.95,132.93,13.91778662]
[1744889908168,6.5615,132.95,132.92,13.91778662]
[1744889908366,14.08335861,132.95,132.91,0.063]
[1744889908600,28.00114523,132.95,132.91,0.063]
[1744889909580,28.00114523,132.95,132.91,13.98078662]
[1744889909783,14.08335861,132.95,132.91,13.98078662]
[1744889910168,28.00114523,132.95,132.91,13.98078662]
[1744889910368,28.00114523,132.95,132.91,0.063]
[1744889910704,96.71778662,132.94,132.91,0.063]
[1744889911203,82.8,132.94,132.91,13.98078662]
[1744889913090,14.08335861,132.95,132.91,13.98078662]
[1744889913274,14.08326121,132.95,132.92,13.91778662]
[1744889913992,28.00104783,132.95,132.91,13.98078662]
[1744889914178,28.00104783,132.95,132.91,0.063]
[1744889914498,13.91778662,132.94,132.91,0.063]
[1744889915291,115.36743548,132.93,132.91,0.063]
[1744889915975,7.52332229,132.92,132.91,0.063]
[1744889917404,108.9726817,132.93,132.91,0.063]
[1744889917600,82.8,132.93,132.91,13.98078662]
[1744889917776,82.8,132.96,132.92,13.91778662]
[1744889917979,82.8,132.96,132.94,13.91778662]
[1744889918298,82.8,132.96,132.93,13.91778662]
[1744889918786,104.23901465,132.96,132.92,13.91778662]
[1744889919900,96.71778662,132.95,132.91,13.98078662]
[1744889920212,13.91778662,132.94,132.91,0.063]
[1744889921393,103.06218662,132.93,132.91,0.063]
[1744889921709,7.52332229,132.92,132.91,0.063]
[1744889922080,21.44110891,132.92,132.91,0.063]
[1744889922884,96.66721005,132.93,132.91,0.063]
[1744889925611,90.32188372,132.95,132.92,13.91778662]
[1744889927710,90.32188372,132.95,132.91,13.98078662]
[1744889930213,104.23967034,132.95,132.91,13.98078662]
[1744889934502,90.32188372,132.95,132.91,13.98078662]
[1744889937191,90.32188372,132.95,132.91,8.98347942]
[1744889937490,90.32188372,132.95,132.92,8.92047942]
[1744889940704,99.24236314,132.95,132.91,0.063]
[1744889941209,90.32188372,132.95,132.91,8.98347942]
[1744889947741,82.8,132.95,132.93,8.92047942]
[1744889947907,90.32032959,132.98,132.94,34.92047942]
[1744889948231,90.32032959,132.98,132.96,8.92047942]
[1744889948905,90.32032959,132.98,132.95,8.92047942]
[1744889949105,90.32032959,132.98,132.96,8.92047942]
[1744889949603,82.8,132.98,132.97,8.92047942]
[1744889949799,8.0715,133.0,132.97,8.92047942]
[1744889950510,15.59056578,133.0,132.97,8.92047942]
[1744889950719,82.8,133.01,132.99,8.92047942]
[1744889952325,7.54683567,133.04,133.0,8.92047942]
[1744889952528,99.26731509,133.04,132.99,8.92047942]
[1744889953028,8.92047942,133.03,132.99,8.92047942]
[1744889953336,8.92047942,133.03,132.98,8.92047942]
[1744889954233,7.51766651,133.02,132.99,8.92047942]
[1744889954716,90.31766651,133.02,132.99,8.92047942]
[1744889956232,90.31766651,133.02,133.0,8.92047942]
[1744889956725,82.8,133.02,133.01,8.92047942]
[1744889957623,82.8,133.02,133.0,8.92047942]
[1744889958218,90.31766651,133.02,132.99,8.92047942]
[1744889958834,90.31766651,133.02,132.98,8.92047942]
[1744889959134,90.31766651,133.02,132.99,8.92047942]
[1744889965415,118.52002828,133.01,132.94,15.02]
[1744889965614,118.52002828,133.01,132.93,0.063]
[1744889965615,8.92047942,132.96,132.93,0.063]
[1744889965836,8.92047942,132.95,132.93,0.063]
[1744889966117,99.87037942,132.96,132.93,0.063]
[1744889966938,7.52162467,132.95,132.93,0.063]
[1744889971148,98.4710645,132.96,132.93,0.063]
[1744889971316,98.4710645,132.96,132.93,14.00099319]
[1744889972343,90.3211645,132.96,132.94,13.93799319]
[1744889973740,82.8,132.96,132.94,13.93799319]
[1744889974341,82.8,132.96,132.95,13.93799319]
[1744889975456,90.32009084,132.98,132.95,13.93799319]
[1744889975752,90.32009084,132.98,132.96,13.93799319]
[1744889976544,82.8,132.98,132.97,13.93799319]
[1744889976935,90.31994196,132.98,132.96,13.93799319]
[1744889980550,90.31994196,132.98,132.95,13.93799319]
[1744889981550,90.31994196,132.98,132.93,0.063]
[1744889981722,90.31994196,132.98,132.95,13.93799319]
[1744889983159,82.8,132.98,132.96,13.93799319]
[1744889983452,13.81649419,132.99,132.96,13.93799319]
[1744889983669,13.81649419,132.99,132.97,13.93799319]
[1744889984752,7.51979419,132.99,132.97,13.93799319]
[1744889985464,7.51979419,132.99,132.96,13.93799319]
[1744889988560,40.25619327,132.99,132.94,13.93799319]
[1744889989070,26.31820008,132.99,132.95,13.93799319]
[1744889989267,26.31820008,132.99,132.95,8.91622869]
[1744889990469,35.23442877,132.99,132.94,34.91622869]
[1744889991186,26.31820008,132.99,132.95,8.91622869]
[1744889992472,7.51979419,132.99,132.97,8.91622869]
[1744889992841,7.51979419,132.99,132.96,8.91622869]
[1744889993042,90.31979419,132.99,132.96,8.91622869]
[1744889993870,90.31979419,132.99,132.95,8.91622869]
[1744889999679,90.31979419,132.99,132.96,8.91622869]